bitfinex/quotes_BTCUSD_20241003
["timestamp","ask_amount","ask_price","bid_price","bid_amount"]
[1727937398864,0.000819,61457.0,61456.0,0.62748071]
[1727937399091,0.000819,61457.0,61456.0,0.64148071]
[1727937399309,0.000819,61457.0,61456.0,0.65548071]
[1727937399806,0.000819,61457.0,61456.0,0.64148071]
[1727937400027,0.000819,61457.0,61456.0,0.62748071]
[1727937400256,0.000819,61457.0,61456.0,0.64148071]
[1727937400511,0.000819,61457.0,61456.0,0.65548071]
[1727937400768,0.000819,61457.0,61456.0,0.64148071]
[1727937401542,0.000819,61457.0,61456.0,0.62748071]
[1727937402007,0.000819,61457.0,61456.0,0.64148071]
[1727937402648,0.000819,61457.0,61456.0,0.65548071]
[1727937404656,0.000819,61457.0,61456.0,0.64148071]
[1727937404870,0.000819,61457.0,61456.0,0.65548071]
[1727937405723,0.000819,61457.0,61456.0,0.64148071]
[1727937406183,0.000819,61457.0,61456.0,0.65548071]
[1727937408618,0.000819,61457.0,61456.0,0.64148071]
[1727937408832,0.000819,61457.0,61456.0,0.65548071]
[1727937409723,0.000819,61457.0,61456.0,0.64148071]
[1727937409913,0.000819,61457.0,61456.0,0.65548071]
[1727937410344,0.000819,61457.0,61456.0,0.64148071]
[1727937411417,0.000819,61457.0,61456.0,0.63948071]
[1727937411631,0.000819,61457.0,61456.0,0.64148071]
[1727937411856,0.000819,61457.0,61456.0,0.65548071]
[1727937412355,0.000819,61457.0,61456.0,0.62748071]
[1727937412572,0.000819,61457.0,61456.0,0.65548071]
[1727937413962,0.000819,61457.0,61456.0,0.65348071]
[1727937416447,0.000819,61457.0,61456.0,0.62548071]
[1727937416698,0.000819,61457.0,61456.0,0.65348071]
[1727937416928,0.000819,61457.0,61456.0,0.63948071]
[1727937417147,0.000819,61457.0,61456.0,0.65348071]
[1727937418271,0.000819,61457.0,61456.0,0.63948071]
[1727937418751,0.000819,61457.0,61456.0,0.65348071]
[1727937418976,0.000819,61457.0,61456.0,0.43998071]
[1727937419423,0.000819,61457.0,61456.0,0.45398071]
[1727937419851,0.000819,61457.0,61456.0,0.43998071]
[1727937420116,0.000819,61457.0,61456.0,0.54130922]
[1727937420338,0.000819,61457.0,61456.0,0.55030922]
[1727937420479,0.000819,61457.0,61456.0,0.56430922]
[1727937421102,0.000819,61457.0,61456.0,0.37698071]
[1727937421433,0.000819,61457.0,61456.0,0.36298071]
[1727937421638,0.000819,61457.0,61456.0,0.37698071]
[1727937421812,0.000819,61457.0,61456.0,0.35398071]
[1727937423186,0.000819,61457.0,61456.0,0.44130922]
[1727937428095,0.000819,61457.0,61456.0,0.35398071]
[1727937428373,0.000819,61457.0,61456.0,0.32136071]
[1727937428627,0.096619,61457.0,61456.0,0.32136071]
[1727937429085,0.177419,61457.0,61456.0,0.158174]
[1727937429515,0.177419,61457.0,61456.0,0.028]
[1727937430203,0.177419,61457.0,61456.0,0.158174]
[1727937435455,0.307591,61457.0,61456.0,0.028]
[1727937435900,0.177419,61457.0,61456.0,0.028]
[1727937436345,0.177419,61457.0,61456.0,0.014]
[1727937436589,0.177419,61457.0,61456.0,0.025]
[1727937436786,0.177419,61457.0,61456.0,0.014]
[1727937437230,0.177419,61457.0,61455.0,0.001638]
[1727937437432,0.177419,61457.0,61456.0,0.012]
[1727937437902,0.177419,61457.0,61455.0,0.001638]
[1727937438155,0.177419,61457.0,61456.0,0.001]
[1727937438843,0.177419,61457.0,61455.0,0.001638]
[1727937440251,0.177419,61457.0,61456.0,0.130174]
[1727937440995,0.177419,61457.0,61455.0,0.002638]
[1727937441216,0.177419,61457.0,61455.0,0.001638]
[1727937441652,0.307591,61457.0,61456.0,0.001]
[1727937442098,0.211791,61457.0,61455.0,0.001638]
[1727937442338,0.303674,61456.0,61455.0,0.001638]
[1727937443423,0.303674,61456.0,61455.0,0.002638]
[1727937443648,0.303674,61456.0,61455.0,0.003638]
[1727937443867,0.303674,61456.0,61455.0,0.002638]
[1727937444354,0.303674,61456.0,61455.0,0.004638]
[1727937446171,0.403674,61456.0,61455.0,0.004638]
[1727937446421,0.50112298,61456.0,61455.0,0.001638]
[1727937446643,0.52648523,61456.0,61455.0,0.001638]
[1727937447315,0.404674,61456.0,61455.0,0.001638]
[1727937447537,0.52642236,61456.0,61455.0,0.001638]
[1727937447772,0.404674,61456.0,61455.0,0.001638]
[1727937448248,0.50202429,61456.0,61455.0,0.001638]
[1727937450342,0.404674,61456.0,61455.0,0.001638]
[1727937450933,0.130193,61447.0,61445.0,0.24461241]
[1727937451166,0.43132089,61447.0,61445.0,0.24461241]
[1727937451393,0.53132089,61447.0,61445.0,0.24461241]
[1727937451614,0.53132089,61447.0,61440.0,0.0498951]
[1727937452326,0.53432089,61447.0,61440.0,0.0498951]
[1727937452605,0.53132089,61447.0,61440.0,0.0498951]
[1727937452859,0.53332089,61447.0,61440.0,0.0498951]
[1727937453100,0.53632089,61447.0,61440.0,0.0498951]
[1727937453599,0.53432089,61447.0,61440.0,0.0498951]
[1727937453837,0.53632089,61447.0,61440.0,0.0498951]
[1727937457523,0.53832089,61447.0,61440.0,0.0498951]
[1727937457992,0.53632089,61447.0,61440.0,0.0498951]
[1727937460850,0.53832089,61447.0,61440.0,0.0498951]
[1727937463785,0.61131187,61447.0,61440.0,0.0498951]
[1727937464004,0.65997253,61447.0,61440.0,0.0498951]
[1727937464285,0.63554412,61447.0,61440.0,0.0498951]
[1727937464517,0.65997253,61447.0,61440.0,0.0498951]
[1727937465246,0.53532089,61447.0,61440.0,0.0498951]
[1727937465502,0.63755211,61447.0,61446.0,0.002636]
[1727937465783,0.53632089,61447.0,61446.0,0.002636]
[1727937466000,0.58893361,61447.0,61446.0,0.003636]
[1727937466342,0.54032089,61447.0,61446.0,0.003636]
[1727937466446,0.58893361,61447.0,61446.0,0.003636]
[1727937466682,0.58693361,61447.0,61446.0,0.002636]
[1727937466919,0.59093243,61447.0,61446.0,0.003636]
[1727937467163,0.58593243,61447.0,61446.0,0.002636]
[1727937467899,0.53707474,61447.0,61446.0,0.002636]
[1727937468193,0.47486593,61447.0,61446.0,0.002636]
[1727937468433,0.32484685,61447.0,61446.0,0.002636]
[1727937468685,0.32484685,61447.0,61446.0,0.003636]
[1727937468686,0.23894685,61447.0,61446.0,0.003636]
[1727937468929,0.23494685,61447.0,61446.0,0.002636]
[1727937469178,0.23894685,61447.0,61446.0,0.003636]
[1727937469666,0.23394685,61447.0,61446.0,0.002636]
[1727937469889,0.36707474,61447.0,61446.0,0.002636]
[1727937470139,0.36807474,61447.0,61446.0,0.002636]
[1727937470368,0.36307474,61447.0,61446.0,0.001636]
[1727937470586,0.36707474,61447.0,61446.0,0.002636]
[1727937471762,0.39759156,61447.0,61446.0,0.003636]
[1727937472005,0.39759156,61447.0,61446.0,0.002636]
[1727937472006,0.39359156,61447.0,61446.0,0.002636]
[1727937472250,0.39759156,61447.0,61446.0,0.003636]
[1727937474689,0.37207474,61447.0,61446.0,0.003636]
[1727937475843,0.39759152,61447.0,61446.0,0.003636]
[1727937476064,0.39359152,61447.0,61446.0,0.002636]
[1727937476537,0.39259152,61447.0,61446.0,0.002636]
[1727937476752,0.44127083,61447.0,61446.0,0.002636]
[1727937476972,0.44627083,61447.0,61446.0,0.003636]
[1727937477204,0.39259152,61447.0,61446.0,0.002636]
[1727937477427,0.44627083,61447.0,61446.0,0.003636]
[1727937478085,0.44227083,61447.0,61446.0,0.002636]
[1727937478329,0.39759152,61447.0,61446.0,0.003636]
[1727937478553,0.39259152,61447.0,61446.0,0.002636]
[1727937478776,0.39259152,61447.0,61440.0,0.1273951]
[1727937478777,0.130204,61443.0,61440.0,0.0616671]
[1727937478995,0.130203,61443.0,61440.0,0.0616671]
[1727937479429,0.1,61444.0,61440.0,0.0616671]
[1727937479691,0.130204,61442.0,61440.0,0.0616671]
[1727937481046,0.130204,61442.0,61436.0,0.092]
[1727937481047,0.130209,61440.0,61436.0,0.092]
[1727937481709,0.15572653,61440.0,61436.0,0.092]
[1727937482181,0.02551753,61440.0,61435.0,0.0828]
[1727937482413,0.130213,61438.0,61435.0,0.0828]
[1727937483354,0.04872624,61439.0,61435.0,0.0828]
[1727937483573,0.130211,61439.0,61435.0,0.0848]
[1727937483791,0.130211,61439.0,61435.0,0.0858]
[1727937484759,0.17894224,61436.0,61435.0,0.003]
[1727937484974,0.17894224,61436.0,61435.0,0.002]
[1727937484975,0.20336972,61436.0,61435.0,0.002]
[1727937485210,0.130216,61436.0,61435.0,0.002]
[1727937485460,0.22766849,61436.0,61435.0,0.002]
[1727937485899,0.130225,61432.0,61431.0,0.24461241]
[1727937486348,0.04877512,61432.0,61428.0,0.0769]
[1727937486565,0.13023,61430.0,61428.0,0.0769]
[1727937486807,0.130231,61429.0,61428.0,0.0769]
[1727937487941,0.130231,61429.0,61428.0,0.0809]
[1727937489056,0.130231,61429.0,61428.0,0.0769]
[1727937489354,0.17900512,61430.0,61428.0,0.0769]
[1727937489572,0.17900512,61430.0,61428.0,0.0819]
[1727937489793,0.17900512,61430.0,61428.0,0.0769]
[1727937490011,0.17900512,61430.0,61428.0,0.0849]
[1727937490443,0.17900512,61430.0,61428.0,0.0809]
[1727937490907,0.17900512,61430.0,61428.0,0.0839]
[1727937491345,0.04877512,61429.0,61428.0,0.0799]
[1727937491805,0.04877512,61429.0,61428.0,0.0819]
[1727937492235,0.09868331,61430.0,61428.0,0.0799]
[1727937492453,0.04883893,61429.0,61428.0,0.0829]
[1727937492670,0.04883893,61429.0,61428.0,0.0799]
[1727937492888,0.04883893,61429.0,61428.0,0.0839]
[1727937493117,0.04883893,61429.0,61428.0,0.0769]
[1727937493340,0.09868331,61430.0,61428.0,0.079538]
[1727937493563,0.04884048,61429.0,61428.0,0.079538]
[1727937493810,0.04884048,61429.0,61428.0,0.078538]
[1727937494020,0.04884048,61429.0,61428.0,0.080538]
[1727937494250,0.04884047,61429.0,61428.0,0.080538]
[1727937494473,0.09878133,61430.0,61428.0,0.078538]
[1727937494924,0.09878133,61430.0,61429.0,0.46754341]
[1727937495155,0.0488383,61438.0,61435.0,0.130218]
[1727937495375,0.0496573,61440.0,61436.0,0.130216]
[1727937496252,0.0488383,61439.0,61435.0,0.130218]
[1727937496470,0.1798653,61440.0,61435.0,0.130218]
[1727937497189,0.0488383,61439.0,61435.0,0.130218]
[1727937497408,0.0488383,61439.0,61432.0,0.260447]
[1727937497409,0.0488383,61437.0,61432.0,0.130223]
[1727937497627,0.0488383,61437.0,61433.0,0.130222]
[1727937497850,0.0488383,61436.0,61433.0,0.130222]
[1727937498523,0.0488383,61436.0,61434.0,0.130219]
[1727937498871,0.04884336,61436.0,61434.0,0.130219]
[1727937499290,0.04884336,61437.0,61435.0,0.130218]
[1727937499505,0.04884336,61436.0,61435.0,0.130218]
[1727937499715,0.04884336,61437.0,61435.0,0.130218]
[1727937500144,0.04884336,61437.0,61434.0,0.13322]
[1727937500363,0.04884336,61439.0,61435.0,0.438137]
[1727937500575,0.04966236,61440.0,61435.0,0.441137]
[1727937500811,0.07408404,61440.0,61439.0,0.30791]
[1727937501220,0.000819,61440.0,61439.0,0.30791]
[1727937502817,0.000819,61440.0,61439.0,0.30891]
[1727937503646,0.000819,61440.0,61439.0,0.30791]
[1727937505072,0.000819,61440.0,61439.0,0.30891]
[1727937505302,0.000819,61440.0,61439.0,0.30791]
[1727937505501,0.000819,61440.0,61439.0,0.30891]
[1727937505908,0.000819,61440.0,61439.0,0.30791]
[1727937506075,0.000819,61440.0,61439.0,0.31091]
[1727937506511,0.000819,61440.0,61439.0,0.30791]
[1727937507174,0.000819,61440.0,61439.0,0.31191]
[1727937507386,0.000819,61440.0,61439.0,0.31391]
[1727937508039,0.000819,61440.0,61439.0,0.31191]
[1727937508283,0.000819,61440.0,61439.0,0.31491]
[1727937508472,0.000819,61440.0,61439.0,0.31091]
[1727937508686,0.000819,61440.0,61439.0,0.30791]
[1727937508898,0.000819,61440.0,61439.0,0.31191]
[1727937509133,0.000819,61440.0,61439.0,0.31291]
[1727937509372,0.000819,61440.0,61439.0,0.50509671]
[1727937509805,0.000819,61440.0,61439.0,0.49909671]
[1727937510018,0.000819,61440.0,61439.0,0.50609671]
[1727937510240,0.000819,61440.0,61439.0,0.49409671]
[1727937510691,0.000819,61440.0,61439.0,0.50209671]
[1727937511119,0.000819,61440.0,61439.0,0.47109671]
[1727937511545,0.000819,61440.0,61439.0,0.48009671]
[1727937511752,0.000819,61440.0,61439.0,0.48909671]
[1727937511957,0.000819,61440.0,61439.0,0.32591]
[1727937512205,0.000819,61440.0,61439.0,0.31691]
[1727937513517,0.0263334,61440.0,61439.0,0.31691]
[1727937513728,0.000819,61440.0,61439.0,0.32491]
[1727937514151,0.000819,61440.0,61439.0,0.31691]
[1727937514377,0.000819,61440.0,61439.0,0.32591]
[1727937516342,0.000819,61440.0,61439.0,0.6452246]
[1727937516614,0.02633253,61440.0,61439.0,0.6452246]
[1727937516857,0.02633253,61440.0,61439.0,0.6778446]
[1727937517334,0.02633253,61440.0,61439.0,0.6688446]
[1727937517800,0.02633253,61440.0,61439.0,0.6828446]
[1727937518038,0.02633253,61440.0,61439.0,0.6738446]
[1727937518915,0.02633253,61440.0,61439.0,0.6878446]
[1727937519359,0.02633253,61440.0,61439.0,0.6894826]
[1727937519872,0.02633253,61440.0,61439.0,0.6754826]
[1727937520088,0.02633253,61440.0,61439.0,0.6894826]
[1727937520764,0.000819,61440.0,61439.0,0.6894826]
[1727937521014,0.000819,61440.0,61439.0,0.6754826]
[1727937521228,0.000819,61440.0,61439.0,0.6894826]
[1727937521666,0.02633071,61440.0,61439.0,0.6894826]
[1727937521890,0.000819,61440.0,61439.0,0.6894826]
[1727937523493,0.000819,61440.0,61439.0,0.69376253]
[1727937524350,0.02633024,61440.0,61439.0,0.69376253]
[1727937526160,0.02633024,61440.0,61439.0,0.67976253]
[1727937526395,0.02633024,61440.0,61439.0,0.66576253]
[1727937526834,0.02633024,61440.0,61439.0,0.67976253]
[1727937527681,0.02633024,61440.0,61439.0,0.69376253]
[1727937529687,0.02633024,61440.0,61439.0,0.79376253]
[1727937532895,0.02633024,61440.0,61439.0,0.43635471]
[1727937533120,0.02633024,61440.0,61439.0,0.159848]
[1727937533337,0.000819,61440.0,61439.0,0.159848]
[1727937533771,0.000819,61440.0,61439.0,0.131848]
[1727937533994,0.000819,61440.0,61439.0,0.137848]
[1727937534288,0.000819,61440.0,61439.0,0.144848]
[1727937534507,0.000819,61440.0,61439.0,0.138848]
[1727937534730,0.02633333,61440.0,61439.0,0.131848]
[1727937534949,0.02633333,61440.0,61439.0,0.142848]
[1727937535162,0.02633333,61440.0,61439.0,0.136848]
[1727937535374,0.02633333,61440.0,61439.0,0.138848]
[1727937535860,0.02633333,61440.0,61439.0,0.131848]
[1727937536718,0.02633333,61440.0,61439.0,0.137848]
[1727937537166,0.02633333,61440.0,61439.0,0.143848]
[1727937537400,0.02633333,61440.0,61439.0,0.137848]
[1727937537615,0.02633333,61440.0,61439.0,0.144848]
[1727937538132,0.02633333,61440.0,61439.0,0.131848]
[1727937538366,0.02633333,61440.0,61439.0,0.136848]
[1727937538577,0.02633333,61440.0,61439.0,0.135848]
[1727937538794,0.02633333,61440.0,61439.0,0.142848]
[1727937539709,0.02633333,61440.0,61439.0,0.138848]
[1727937539922,0.02633333,61440.0,61439.0,0.144848]
[1727937540135,0.02633333,61440.0,61439.0,0.137848]
[1727937540634,0.02633333,61440.0,61439.0,0.142848]
[1727937540827,0.02633333,61440.0,61439.0,0.137848]
[1727937541043,0.02633333,61440.0,61439.0,0.144848]
[1727937541255,0.02633333,61440.0,61439.0,0.131848]
[1727937541700,0.02633333,61440.0,61439.0,0.140848]
[1727937542867,0.02633333,61440.0,61439.0,0.136848]
[1727937543108,0.02633333,61440.0,61439.0,0.142848]
[1727937543334,0.02633333,61440.0,61439.0,0.137848]
[1727937543584,0.11633333,61440.0,61439.0,0.007638]
[1727937543804,0.32724133,61440.0,61439.0,0.009638]
[1727937544023,0.32724133,61440.0,61439.0,0.016638]
[1727937544914,0.32724133,61440.0,61439.0,0.009638]
[1727937545131,0.19703333,61440.0,61439.0,0.001638]
[1727937545321,0.19703333,61440.0,61439.0,0.002638]
[1727937546663,0.32724133,61440.0,61439.0,0.002638]
[1727937547318,0.301727,61440.0,61439.0,0.002638]
[1727937550316,0.32724447,61440.0,61439.0,0.002638]
[1727937550657,0.301727,61440.0,61439.0,0.002638]
[1727937550863,0.3272445,61440.0,61439.0,0.002638]
[1727937552022,0.0263365,61440.0,61439.0,0.22028519]
[1727937552399,0.0263365,61440.0,61439.0,0.132848]
[1727937553892,0.000819,61440.0,61439.0,0.132848]
[1727937556917,0.02633463,61440.0,61439.0,0.132848]
[1727937557358,0.000819,61440.0,61439.0,0.132848]
[1727937560277,0.02633464,61440.0,61439.0,0.132848]
[1727937562231,0.02633464,61440.0,61439.0,0.002638]
[1727937564928,0.000819,61440.0,61439.0,0.002638]
[1727937566944,0.230527,61440.0,61439.0,0.002638]
[1727937567891,0.12583628,61440.0,61439.0,0.002638]
[1727937569244,0.25604428,61440.0,61439.0,0.002638]
[1727937569728,0.33804428,61440.0,61439.0,0.002638]
[1727937569952,0.55919977,61440.0,61439.0,0.002638]
[1727937570186,0.44004428,61440.0,61439.0,0.001]
[1727937570421,0.407516,61436.0,61435.0,0.001638]
[1727937570648,0.54070846,61436.0,61435.0,0.001638]
[1727937570886,0.130231,61429.0,61428.0,0.001638]
[1727937571112,0.53582346,61429.0,61428.0,0.001638]
[1727937571560,0.56134912,61429.0,61428.0,0.001638]
[1727937572228,0.56234912,61429.0,61428.0,0.002638]
[1727937572660,0.56434912,61429.0,61428.0,0.002638]
[1727937572892,0.56234912,61429.0,61428.0,0.002638]
[1727937573367,0.57034912,61429.0,61428.0,0.003638]
[1727937573839,0.53882346,61429.0,61428.0,0.002638]
[1727937574057,0.54682346,61429.0,61428.0,0.003638]
[1727937574490,0.66859027,61429.0,61428.0,0.003638]
[1727937574936,0.57235147,61429.0,61428.0,0.003638]
[1727937575610,0.6940876,61429.0,61428.0,0.003638]
[1727937575827,0.69408747,61429.0,61428.0,0.003638]
[1727937577418,0.57235147,61429.0,61428.0,0.003638]
[1727937578522,0.69408747,61429.0,61428.0,0.003638]
[1727937578690,0.57235147,61429.0,61428.0,0.003638]
[1727937579633,0.66968229,61429.0,61428.0,0.003638]
[1727937580300,0.57235147,61429.0,61428.0,0.003638]
[1727937580506,0.69399023,61429.0,61428.0,0.003638]
[1727937581399,0.69399004,61429.0,61428.0,0.003638]
[1727937581646,0.57235147,61429.0,61428.0,0.003638]
[1727937581866,0.43915901,61429.0,61428.0,0.003638]
[1727937582079,0.66964057,61429.0,61428.0,0.003638]
[1727937582503,0.57235147,61429.0,61428.0,0.003638]
[1727937583572,0.64529667,61429.0,61428.0,0.003638]
[1727937584866,0.54682346,61429.0,61428.0,0.003638]
[1727937585347,0.61976866,61429.0,61428.0,0.003638]
[1727937585567,0.54682346,61429.0,61428.0,0.003638]
[1727937585778,0.61976866,61429.0,61428.0,0.003638]
[1727937586202,0.54682346,61429.0,61428.0,0.003638]
[1727937586855,0.6197514,61429.0,61428.0,0.003638]
[1727937587071,0.64406072,61429.0,61428.0,0.003638]
[1727937587287,0.54682346,61429.0,61428.0,0.003638]
[1727937587498,0.64405661,61429.0,61428.0,0.003638]
[1727937587712,0.52668849,61429.0,61428.0,0.003638]
[1727937588180,0.64823506,61429.0,61428.0,0.003638]
[1727937589484,0.52668849,61429.0,61428.0,0.003638]
[1727937591449,0.643603,61429.0,61428.0,0.003638]
[1727937591665,0.49807962,61420.0,61410.0,0.24625041]
[1727937592316,0.49807962,61420.0,61419.0,0.001638]
[1727937592542,0.52360929,61420.0,61419.0,0.001638]
[1727937593414,0.52960929,61420.0,61419.0,0.002638]
[1727937593634,0.52360929,61420.0,61419.0,0.001638]
[1727937594062,0.53660929,61420.0,61419.0,0.002638]
[1727937594563,0.54860929,61420.0,61419.0,0.002638]
[1727937594771,0.52307962,61420.0,61419.0,0.002638]
[1727937595661,0.51007962,61420.0,61419.0,0.001638]
[1727937595842,0.52207962,61420.0,61419.0,0.001638]
[1727937597806,0.54760973,61420.0,61419.0,0.001638]
[1727937600151,0.27978011,61420.0,61419.0,0.001638]
[1727937600380,0.36730973,61420.0,61419.0,0.001638]
[1727937601801,0.4131441,61420.0,61419.0,0.001638]
[1727937604968,0.38961399,61420.0,61419.0,0.001638]
[1727937605421,0.38761399,61420.0,61419.0,0.001638]
[1727937605651,0.56361399,61420.0,61419.0,0.001638]
[1727937605887,0.61419808,61420.0,61419.0,0.001638]
[1727937606112,0.56561399,61420.0,61419.0,0.001638]
[1727937606560,0.68307422,61420.0,61419.0,0.001638]
[1727937607016,0.56161399,61420.0,61419.0,0.001638]
[1727937607720,0.58714602,61420.0,61419.0,0.001638]
[1727937614800,0.56161399,61420.0,61419.0,0.001638]
[1727937616889,0.38561399,61420.0,61419.0,0.001638]
[1727937617109,0.28361399,61420.0,61419.0,0.001638]
[1727937617792,0.30914364,61420.0,61419.0,0.001638]
[1727937618245,0.38361399,61420.0,61419.0,0.001638]
[1727937618978,0.53008324,61420.0,61419.0,0.001638]
[1727937619473,0.38361399,61420.0,61419.0,0.001638]
[1727937619998,0.28361399,61420.0,61419.0,0.001638]
[1727937621745,0.23776971,61420.0,61419.0,0.001638]
[1727937622772,0.024,61420.0,61419.0,0.31259]
[1727937623035,0.07283034,61420.0,61419.0,0.56329642]
[1727937623304,0.024,61420.0,61419.0,0.58629642]
[1727937623551,0.04883034,61430.0,61429.0,0.310931]
[1727937623855,0.04883034,61430.0,61429.0,0.1807]
[1727937624076,0.07432764,61430.0,61429.0,0.1807]
[1727937624349,0.02552235,61430.0,61429.0,0.310931]
[1727937624807,0.04880514,61431.0,61430.0,0.130229]
[1727937625036,0.04880514,61432.0,61431.0,0.130227]
[1727937625256,0.04880514,61433.0,61431.0,0.130227]
[1727937625474,0.04880514,61434.0,61431.0,0.130227]
[1727937625703,0.04962414,61435.0,61431.0,0.130227]
[1727937626157,0.02552019,61434.0,61432.0,0.078]
[1727937628018,0.02652019,61434.0,61432.0,0.078]
[1727937628479,0.02652019,61434.0,61432.0,0.08]
[1727937634759,0.001,61434.0,61432.0,0.08]
[1727937636188,0.130223,61433.0,61432.0,0.08]
[1727937636412,0.130223,61433.0,61432.0,0.002]
[1727937637768,0.15574484,61433.0,61432.0,0.002]
[1727937637990,0.130227,61431.0,61429.0,0.001638]
[1727937638463,0.130229,61430.0,61429.0,0.001638]
[1727937639345,0.130229,61430.0,61429.0,0.005638]
[1727937639793,0.130229,61430.0,61429.0,0.001638]
[1727937640011,0.130229,61430.0,61429.0,0.003638]
[1727937641109,0.15575123,61430.0,61429.0,0.003638]
[1727937641347,0.15575123,61430.0,61429.0,0.008638]
[1727937645376,0.130229,61430.0,61429.0,0.008638]
[1727937646953,0.260451,61432.0,61429.0,0.008638]
[1727937647181,0.130229,61430.0,61429.0,0.008638]
[1727937648325,0.1557508,61430.0,61429.0,0.008638]
[1727937648564,0.1557508,61430.0,61429.0,0.001638]
[1727937648810,0.1557508,61430.0,61429.0,0.006638]
[1727937649774,0.1565698,61430.0,61429.0,0.008638]
[1727937650272,0.0263408,61430.0,61429.0,0.008638]
[1727937650540,0.0263408,61430.0,61429.0,0.311369]
[1727937654830,0.000819,61430.0,61429.0,0.311369]
[1727937657833,0.02633853,61430.0,61429.0,0.311369]
[1727937658311,0.02633853,61430.0,61429.0,0.44461782]
[1727937658552,0.02633853,61430.0,61429.0,0.311369]
[1727937658786,0.02633853,61430.0,61429.0,0.008638]
[1727937659234,0.02633853,61430.0,61429.0,0.006638]
[1727937659690,0.02733853,61430.0,61429.0,0.016638]
[1727937660116,0.02633853,61430.0,61429.0,0.001638]
[1727937660332,0.02633853,61430.0,61429.0,0.003638]
[1727937661465,0.02633853,61430.0,61429.0,0.008638]
[1727937661935,0.02533853,61430.0,61429.0,0.003638]
[1727937662161,0.02533853,61430.0,61429.0,0.137869]
[1727937663026,0.15638653,61430.0,61429.0,0.007638]
[1727937663245,0.02615753,61430.0,61429.0,0.007638]
[1727937663924,0.000819,61430.0,61429.0,0.007638]
[1727937665517,0.04945202,61430.0,61429.0,0.007638]
[1727937666393,0.07376853,61430.0,61429.0,0.007638]
[1727937667325,0.000819,61430.0,61429.0,0.007638]
[1727937667568,0.07411524,61430.0,61429.0,0.232269]
[1727937667788,0.000819,61430.0,61429.0,0.308369]
[1727937669556,0.03967792,61431.0,61429.0,0.178138]
[1727937669775,0.07332708,61433.0,61431.0,0.260453]
[1727937669991,0.07332708,61433.0,61432.0,0.130225]
[1727937670208,0.000819,61434.0,61433.0,0.130223]
[1727937670420,0.09858844,61434.0,61433.0,0.130223]
[1727937671567,0.09858844,61434.0,61429.0,0.174138]
[1727937671568,0.09858844,61434.0,61429.0,0.001638]
[1727937671801,0.0733283,61430.0,61429.0,0.001638]
[1727937672031,0.130229,61430.0,61429.0,0.002638]
[1727937672508,0.25244081,61430.0,61429.0,0.001638]
[1727937673412,0.25244081,61430.0,61429.0,0.005638]
[1727937674293,0.131048,61430.0,61429.0,0.005638]
[1727937674780,0.131048,61430.0,61429.0,0.007638]
[1727937675714,0.131048,61430.0,61429.0,0.005638]
[1727937675930,0.136048,61430.0,61429.0,0.005638]
[1727937676151,0.136048,61430.0,61429.0,0.001638]
[1727937676587,0.139048,61430.0,61429.0,0.001638]
[1727937681043,0.134048,61430.0,61429.0,0.001638]
[1727937681319,0.136048,61430.0,61429.0,0.001638]
[1727937681764,0.226524,61430.0,61429.0,0.001638]
[1727937682620,0.221524,61430.0,61429.0,0.001638]
[1727937683035,0.218524,61430.0,61429.0,0.001638]
[1727937683242,0.221524,61430.0,61429.0,0.001638]
[1727937683894,0.226524,61430.0,61429.0,0.001638]
[1727937684103,0.34570696,61430.0,61429.0,0.001638]
[1727937684314,0.34170696,61430.0,61429.0,0.001638]
[1727937684735,0.34470696,61430.0,61429.0,0.001638]
[1727937684949,0.22252475,61430.0,61429.0,0.001638]
[1727937685387,0.34470356,61430.0,61429.0,0.001638]
[1727937685607,0.22252475,61430.0,61429.0,0.001638]
[1727937686076,0.39002475,61430.0,61429.0,0.001638]
[1727937686290,0.39202475,61430.0,61429.0,0.001638]
[1727937686566,0.39002475,61430.0,61429.0,0.001638]
[1727937687736,0.70283929,61430.0,61429.0,0.001638]
[1727937687960,0.53789107,61430.0,61429.0,0.001638]
[1727937688634,0.53489107,61430.0,61429.0,0.001638]
[1727937689288,0.53389107,61430.0,61429.0,0.001638]
[1727937689504,0.54189107,61430.0,61429.0,0.002638]
[1727937689977,0.53389107,61430.0,61429.0,0.001638]
[1727937690189,0.54589107,61430.0,61429.0,0.002638]
[1727937690619,0.55589107,61430.0,61429.0,0.003638]
[1727937691076,0.55589107,61430.0,61429.0,0.002638]
[1727937691311,0.70867926,61430.0,61429.0,0.002638]
[1727937691529,0.70867926,61430.0,61429.0,0.003638]
[1727937691530,0.55889107,61430.0,61429.0,0.003638]
[1727937691993,0.55689107,61430.0,61429.0,0.003638]
[1727937692213,0.156048,61430.0,61429.0,0.003638]
[1727937693577,0.156048,61430.0,61429.0,0.002638]
[1727937693578,0.26607182,61430.0,61429.0,0.002638]
[1727937693803,0.39541572,61430.0,61429.0,0.002638]
[1727937694022,0.28339107,61430.0,61429.0,0.002638]
[1727937694246,0.40541406,61430.0,61429.0,0.002638]
[1727937694716,0.28339107,61430.0,61429.0,0.002638]
[1727937702809,0.28336105,61430.0,61429.0,0.002638]
[1727937705430,0.28336105,61430.0,61419.0,0.082338]
[1727937705431,0.23225,61420.0,61419.0,0.001638]
[1727937705654,0.53916305,61420.0,61419.0,0.001638]
[1727937705870,0.230265,61413.0,61412.0,0.24461241]
[1727937706081,0.36357805,61413.0,61412.0,0.24461241]
[1727937706286,0.36357805,61413.0,61410.0,0.001638]
[1727937706287,0.130269,61411.0,61410.0,0.001638]
[1727937707608,0.25726177,61411.0,61410.0,0.001638]
[1727937708466,0.141269,61411.0,61410.0,0.001638]
[1727937709602,0.2388099,61411.0,61410.0,0.001638]
[1727937710810,0.37212295,61411.0,61410.0,0.001638]
[1727937711043,0.32333978,61411.0,61410.0,0.001638]
[1727937711271,0.27458205,61411.0,61410.0,0.001638]
[1727937711492,0.141269,61411.0,61410.0,0.001638]
[1727937713387,0.19002719,61411.0,61410.0,0.001638]
[1727937714018,0.141269,61411.0,61410.0,0.001638]
[1727937715232,0.011,61411.0,61410.0,0.001638]
[1727937716723,0.006,61411.0,61410.0,0.001638]
[1727937716893,0.006,61411.0,61410.0,0.079238]